[Event "Titled Tuesday Blitz January 31 Early 2023"]
[White "Chigaev, Maksim"]
[Black "Jobava, Baadur"]
[WhiteFideId "4108116"]
[BlackFideId "13601520"]
[WhiteElo "2628"]
[BlackElo "2578"]
[Result "0-1"]
[Round "08"]
[TimeControl "180+2"]
[Date "2023.01.31"]
[WhiteClock "0:00:07"]
[BlackClock "0:00:25"]

1. e4 {[%clk 0:03:00]}  d6 {[%clk 0:02:53]} 2. d4 {[%clk 0:03:01]}  Nf6 {[%clk 0:02:54]} 3. Nc3 {[%clk 0:03:01]}  e5 {[%clk 0:02:55]} 4. Nf3 {[%clk 0:03:02]}  Nbd7 {[%clk 0:02:55]} 5. Rg1 {[%clk 0:03:03]}  g6 {[%clk 0:02:55]} 6. g4 {[%clk 0:03:03]}  Bg7 {[%clk 0:02:55]} 7. g5 {[%clk 0:03:03]}  Nh5 {[%clk 0:02:56]} 8. Be3 {[%clk 0:03:04]}  O-O {[%clk 0:02:56]} 9. Qd2 {[%clk 0:03:04]}  c6 {[%clk 0:02:57]} 10. O-O-O {[%clk 0:03:03]}  Qe7 {[%clk 0:02:57]} 11. Kb1 {[%clk 0:02:54]}  Re8 {[%clk 0:02:56]} 12. Bc4 {[%clk 0:02:40]}  b5 {[%clk 0:02:47]} 13. Bb3 {[%clk 0:02:40]}  a5 {[%clk 0:02:46]} 14. a4 {[%clk 0:02:33]}  b4 {[%clk 0:02:40]} 15. Ne2 {[%clk 0:02:33]}  Ba6 {[%clk 0:02:37]} 16. Ng3 {[%clk 0:02:27]}  Nxg3 {[%clk 0:02:35]} 17. hxg3 {[%clk 0:02:25]}  Rad8 {[%clk 0:02:22]} 18. Rge1 {[%clk 0:02:03]}  c5 {[%clk 0:02:13]} 19. dxc5 {[%clk 0:02:03]}  Nxc5 {[%clk 0:02:13]} 20. Bxc5 {[%clk 0:01:58]}  dxc5 {[%clk 0:02:13]} 21. Bd5 {[%clk 0:01:58]}  c4 {[%clk 0:02:11]} 22. Qe3 {[%clk 0:01:54]}  Qc7 {[%clk 0:01:58]} 23. Nh2 {[%clk 0:01:47]}  b3 {[%clk 0:01:38]} 24. cxb3 {[%clk 0:01:38]}  Rb8 {[%clk 0:01:36]} 25. Rc1 {[%clk 0:01:32]}  Rb4 {[%clk 0:01:16]} 26. Rc2 {[%clk 0:01:12]}  Reb8 {[%clk 0:01:13]} 27. bxc4 {[%clk 0:01:09]}  Rxa4 {[%clk 0:01:11]} 28. Ng4 {[%clk 0:01:06]}  Rab4 {[%clk 0:00:58]} 29. Nf6+ {[%clk 0:00:59]}  Bxf6 {[%clk 0:00:58]} 30. gxf6 {[%clk 0:00:59]}  Qd6 {[%clk 0:00:57]} 31. c5 {[%clk 0:00:58]}  Qxf6 {[%clk 0:00:57]} 32. c6 {[%clk 0:00:59]}  Rc8 {[%clk 0:00:50]} 33. Rd1 {[%clk 0:00:54]}  Kg7 {[%clk 0:00:48]} 34. f4 {[%clk 0:00:47]}  Rc7 {[%clk 0:00:36]} 35. Qc5 {[%clk 0:00:34]}  exf4 {[%clk 0:00:31]} 36. Qxa5 {[%clk 0:00:32]}  Qd6 {[%clk 0:00:27]} 37. e5 {[%clk 0:00:27]}  Qe7 {[%clk 0:00:27]} 38. gxf4 {[%clk 0:00:25]}  Bc8 {[%clk 0:00:25]} 39. Kc1 {[%clk 0:00:16]}  Bf5 {[%clk 0:00:24]} 40. Rc3 {[%clk 0:00:08]}  Ra7 {[%clk 0:00:24]} 41. Qc5 {[%clk 0:00:06]}  Qxc5 {[%clk 0:00:25]} 42. Rxc5 {[%clk 0:00:06]}  Ra1+ {[%clk 0:00:25]} 43. Kd2 {[%clk 0:00:06]}  Rd4+ {[%clk 0:00:26]} 44. Ke3 {[%clk 0:00:07]}  Raxd1 {[%clk 0:00:26]} 45. c7 {[%clk 0:00:07]}  Rxd5 {[%clk 0:00:25]} 0-1


[Site "https://www.chess.com"]

[Event "Titled Tuesday Blitz January 31 Early 2023"]
[White "Deac, Bogdan-Daniel"]
[Black "Hakobyan, Aram"]
[WhiteFideId "1226380"]
[BlackFideId "13306677"]
[WhiteElo "2700"]
[BlackElo "2608"]
[Result "0-1"]
[Round "08"]
[TimeControl "180+2"]
[Date "2023.01.31"]
[WhiteClock "0:00:02"]
[BlackClock "0:01:05"]

1. c4 {[%clk 0:03:00]}  Nf6 {[%clk 0:03:00]} 2. Nf3 {[%clk 0:02:59]}  e6 {[%clk 0:03:00]} 3. g3 {[%clk 0:03:00]}  b6 {[%clk 0:02:58]} 4. Bg2 {[%clk 0:02:59]}  Bb7 {[%clk 0:02:59]} 5. O-O {[%clk 0:03:00]}  g6 {[%clk 0:02:59]} 6. d4 {[%clk 0:02:35]}  Bg7 {[%clk 0:02:59]} 7. Bf4 {[%clk 0:02:35]}  O-O {[%clk 0:02:59]} 8. Qc2 {[%clk 0:02:35]}  Be4 {[%clk 0:02:56]} 9. Qc1 {[%clk 0:02:30]}  Bb7 {[%clk 0:02:50]} 10. Rd1 {[%clk 0:02:30]}  d6 {[%clk 0:02:48]} 11. Qc2 {[%clk 0:02:22]}  Be4 {[%clk 0:02:47]} 12. Qb3 {[%clk 0:02:22]}  Nc6 {[%clk 0:02:47]} 13. Nbd2 {[%clk 0:02:21]}  Na5 {[%clk 0:02:42]} 14. Qc3 {[%clk 0:02:08]}  Bb7 {[%clk 0:02:41]} 15. b4 {[%clk 0:01:55]}  Nc6 {[%clk 0:02:41]} 16. b5 {[%clk 0:01:55]}  Ne7 {[%clk 0:02:37]} 17. Qc2 {[%clk 0:01:42]}  h6 {[%clk 0:02:32]} 18. e4 {[%clk 0:00:54]}  g5 {[%clk 0:02:32]} 19. Be3 {[%clk 0:00:52]}  Ng4 {[%clk 0:02:32]} 20. Nb3 {[%clk 0:00:30]}  Nxe3 {[%clk 0:02:29]} 21. fxe3 {[%clk 0:00:29]}  f5 {[%clk 0:02:29]} 22. exf5 {[%clk 0:00:27]}  Nxf5 {[%clk 0:02:22]} 23. Qe2 {[%clk 0:00:25]}  g4 {[%clk 0:02:09]} 24. Ne1 {[%clk 0:00:25]}  Bxg2 {[%clk 0:02:01]} 25. Nxg2 {[%clk 0:00:25]}  h5 {[%clk 0:02:01]} 26. e4 {[%clk 0:00:16]}  Nh6 {[%clk 0:01:54]} 27. Nf4 {[%clk 0:00:16]}  Qe8 {[%clk 0:01:53]} 28. Rac1 {[%clk 0:00:12]}  Nf7 {[%clk 0:01:47]} 29. Nxh5 {[%clk 0:00:10]}  Ng5 {[%clk 0:01:40]} 30. Qxg4 {[%clk 0:00:09]}  Qg6 {[%clk 0:01:41]} 31. Kh1 {[%clk 0:00:04]}  Rf2 {[%clk 0:01:32]} 32. Rf1 {[%clk 0:00:03]}  Raf8 {[%clk 0:01:32]} 33. Rxf2 {[%clk 0:00:02]}  Rxf2 {[%clk 0:01:33]} 34. Nxg7 {[%clk 0:00:03]}  Nf3 {[%clk 0:01:32]} 35. Qh3 {[%clk 0:00:03]}  Rxh2+ {[%clk 0:01:32]} 36. Qxh2 {[%clk 0:00:03]}  Nxh2 {[%clk 0:01:30]} 37. Kxh2 {[%clk 0:00:04]}  Qh6+ {[%clk 0:01:30]} 38. Kg2 {[%clk 0:00:04]}  Kxg7 {[%clk 0:01:29]} 39. Re1 {[%clk 0:00:04]}  Qh5 {[%clk 0:01:23]} 40. Nd2 {[%clk 0:00:03]}  a6 {[%clk 0:01:10]} 41. a4 {[%clk 0:00:03]}  axb5 {[%clk 0:01:10]} 42. axb5 {[%clk 0:00:04]}  Qh8 {[%clk 0:01:07]} 43. Ra1 {[%clk 0:00:03]}  Qh6 {[%clk 0:01:05]} 44. Nf1 {[%clk 0:00:03]}  Qg6 {[%clk 0:01:04]} 45. Re1 {[%clk 0:00:03]}  Qf6 {[%clk 0:01:04]} 46. e5 {[%clk 0:00:03]}  Qf5 {[%clk 0:01:04]} 47. exd6 {[%clk 0:00:02]}  cxd6 {[%clk 0:01:05]} 48. Nd2 {[%clk 0:00:02]}  Qd3 {[%clk 0:01:05]} 49. Re2 {[%clk 0:00:02]}  Qxe2+ {[%clk 0:01:05]} 0-1


[Site "https://www.chess.com"]

[Event "Titled Tuesday Blitz January 31 Early 2023"]
[White "Begmuratov, Khumoyun"]
[Black "Bortnyk, Olexandr"]
[WhiteFideId "14210207"]
[BlackFideId "14120828"]
[WhiteElo "2387"]
[BlackElo "2605"]
[Result "0-1"]
[Round "08"]
[TimeControl "180+2"]
[Date "2023.01.31"]
[WhiteClock "0:00:03"]
[BlackClock "0:00:33"]

1. e4 {[%clk 0:03:00]}  Nf6 {[%clk 0:02:59]} 2. Nc3 {[%clk 0:03:00]}  d5 {[%clk 0:02:59]} 3. exd5 {[%clk 0:02:59]}  Nxd5 {[%clk 0:03:00]} 4. Nf3 {[%clk 0:03:00]}  Nxc3 {[%clk 0:03:00]} 5. bxc3 {[%clk 0:02:59]}  g6 {[%clk 0:03:00]} 6. d4 {[%clk 0:02:59]}  Bg7 {[%clk 0:03:00]} 7. Be2 {[%clk 0:02:52]}  O-O {[%clk 0:02:53]} 8. O-O {[%clk 0:02:52]}  c5 {[%clk 0:02:54]} 9. Be3 {[%clk 0:02:52]}  Qa5 {[%clk 0:02:54]} 10. Qd2 {[%clk 0:02:42]}  Rd8 {[%clk 0:02:53]} 11. Rfd1 {[%clk 0:02:20]}  cxd4 {[%clk 0:02:52]} 12. cxd4 {[%clk 0:02:19]}  Qxd2 {[%clk 0:02:53]} 13. Rxd2 {[%clk 0:02:18]}  Nc6 {[%clk 0:02:52]} 14. Rb1 {[%clk 0:02:13]}  b6 {[%clk 0:02:49]} 15. c4 {[%clk 0:01:47]}  Bf5 {[%clk 0:02:46]} 16. Rc1 {[%clk 0:01:47]}  Rac8 {[%clk 0:02:46]} 17. h3 {[%clk 0:01:44]}  h6 {[%clk 0:02:34]} 18. d5 {[%clk 0:01:42]}  Na5 {[%clk 0:02:26]} 19. Nd4 {[%clk 0:01:38]}  Bd7 {[%clk 0:01:56]} 20. Nb3 {[%clk 0:01:38]}  Nb7 {[%clk 0:01:54]} 21. c5 {[%clk 0:01:38]}  bxc5 {[%clk 0:01:53]} 22. Nxc5 {[%clk 0:01:37]}  Nxc5 {[%clk 0:01:48]} 23. Rxc5 {[%clk 0:01:34]}  Bf6 {[%clk 0:01:42]} 24. Rdc2 {[%clk 0:01:31]}  Rb8 {[%clk 0:01:38]} 25. Ra5 {[%clk 0:01:26]}  Bf5 {[%clk 0:01:36]} 26. Rc1 {[%clk 0:01:21]}  Be4 {[%clk 0:01:34]} 27. Rxa7 {[%clk 0:01:18]}  Bxd5 {[%clk 0:01:30]} 28. a4 {[%clk 0:01:07]}  Rdc8 {[%clk 0:01:18]} 29. Rxc8+ {[%clk 0:01:05]}  Rxc8 {[%clk 0:01:19]} 30. a5 {[%clk 0:01:05]}  Rc2 {[%clk 0:01:19]} 31. Bf1 {[%clk 0:01:02]}  Ra2 {[%clk 0:01:19]} 32. a6 {[%clk 0:00:59]}  Ra1 {[%clk 0:01:18]} 33. Rc7 {[%clk 0:00:57]}  Be4 {[%clk 0:01:14]} 34. g3 {[%clk 0:00:53]}  Bb2 {[%clk 0:00:48]} 35. a7 {[%clk 0:00:31]}  e5 {[%clk 0:00:48]} 36. Rc4 {[%clk 0:00:24]}  Bf3 {[%clk 0:00:45]} 37. Bxh6 {[%clk 0:00:18]}  Rxa7 {[%clk 0:00:43]} 38. Rb4 {[%clk 0:00:14]}  Bd4 {[%clk 0:00:40]} 39. Be3 {[%clk 0:00:11]}  Ra1 {[%clk 0:00:38]} 40. Rb8+ {[%clk 0:00:09]}  Kg7 {[%clk 0:00:37]} 41. Rb4 {[%clk 0:00:02]}  Bxe3 {[%clk 0:00:35]} 42. fxe3 {[%clk 0:00:03]}  Be2 {[%clk 0:00:36]} 43. Kf2 {[%clk 0:00:03]}  Bxf1 {[%clk 0:00:36]} 44. Re4 {[%clk 0:00:03]}  Bxh3 {[%clk 0:00:35]} 45. Rxe5 {[%clk 0:00:03]}  Bg4 {[%clk 0:00:35]} 46. e4 {[%clk 0:00:03]}  Ra2+ {[%clk 0:00:35]} 47. Ke3 {[%clk 0:00:02]}  Ra3+ {[%clk 0:00:35]} 48. Kf4 {[%clk 0:00:03]}  Be2 {[%clk 0:00:33]} 49. Rb5 {[%clk 0:00:03]}  Bxb5 {[%clk 0:00:33]} 0-1


[Site "https://www.chess.com"]

[Event "Titled Tuesday Blitz January 31 Early 2023"]
[White "Kozak, Adam"]
[Black "Pakleza, Zbigniew"]
[WhiteFideId "753246"]
[BlackFideId "1119290"]
[WhiteElo "2572"]
[BlackElo "2494"]
[Result "1-0"]
[Round "08"]
[TimeControl "180+2"]
[Date "2023.01.31"]
[WhiteClock "0:00:04"]
[BlackClock "0:00:01"]

1. c4 {[%clk 0:02:58]}  c6 {[%clk 0:03:00]} 2. Nc3 {[%clk 0:02:58]}  d5 {[%clk 0:03:00]} 3. e3 {[%clk 0:02:58]}  Nf6 {[%clk 0:03:01]} 4. Nf3 {[%clk 0:02:58]}  Bg4 {[%clk 0:03:01]} 5. cxd5 {[%clk 0:02:58]}  Bxf3 {[%clk 0:03:01]} 6. Qxf3 {[%clk 0:02:59]}  cxd5 {[%clk 0:03:02]} 7. Bb5+ {[%clk 0:03:00]}  Nc6 {[%clk 0:03:02]} 8. Bxc6+ {[%clk 0:03:00]}  bxc6 {[%clk 0:03:02]} 9. b3 {[%clk 0:03:01]}  e6 {[%clk 0:03:01]} 10. Bb2 {[%clk 0:03:01]}  Be7 {[%clk 0:03:00]} 11. O-O {[%clk 0:03:02]}  O-O {[%clk 0:03:01]} 12. Rfc1 {[%clk 0:03:02]}  c5 {[%clk 0:02:43]} 13. Na4 {[%clk 0:03:01]}  Rc8 {[%clk 0:02:39]} 14. Rc2 {[%clk 0:03:01]}  c4 {[%clk 0:02:24]} 15. Rac1 {[%clk 0:02:57]}  Qd7 {[%clk 0:02:21]} 16. Qd1 {[%clk 0:02:52]}  cxb3 {[%clk 0:02:15]} 17. axb3 {[%clk 0:02:52]}  h6 {[%clk 0:02:07]} 18. h3 {[%clk 0:02:48]}  Qb7 {[%clk 0:01:55]} 19. Nc5 {[%clk 0:02:34]}  Qb5 {[%clk 0:01:39]} 20. Bxf6 {[%clk 0:01:27]}  Bxf6 {[%clk 0:01:28]} 21. d4 {[%clk 0:01:16]}  Be7 {[%clk 0:01:24]} 22. Qg4 {[%clk 0:01:11]}  Rc6 {[%clk 0:01:14]} 23. Qd1 {[%clk 0:00:42]}  Rfc8 {[%clk 0:01:12]} 24. Rc3 {[%clk 0:00:31]}  Bd8 {[%clk 0:00:45]} 25. Qd3 {[%clk 0:00:11]}  Qa5 {[%clk 0:00:28]} 26. R3c2 {[%clk 0:00:07]}  Bb6 {[%clk 0:00:23]} 27. Nb7 {[%clk 0:00:03]}  Rxc2 {[%clk 0:00:20]} 28. Rxc2 {[%clk 0:00:03]}  Qe1+ {[%clk 0:00:20]} 29. Kh2 {[%clk 0:00:03]}  Rc7 {[%clk 0:00:07]} 30. Nc5 {[%clk 0:00:03]}  g6 {[%clk 0:00:05]} 31. g3 {[%clk 0:00:03]}  h5 {[%clk 0:00:05]} 32. h4 {[%clk 0:00:03]}  Kh7 {[%clk 0:00:04]} 33. Kg2 {[%clk 0:00:03]}  Qb1 {[%clk 0:00:04]} 34. Qc3 {[%clk 0:00:02]}  Qd1 {[%clk 0:00:03]} 35. b4 {[%clk 0:00:02]}  Qb1 {[%clk 0:00:02]} 36. Qb2 {[%clk 0:00:02]}  Qd1 {[%clk 0:00:02]} 37. Rd2 {[%clk 0:00:02]}  Qg4 {[%clk 0:00:02]} 38. Rc2 {[%clk 0:00:02]}  Qf5 {[%clk 0:00:02]} 39. Qc3 {[%clk 0:00:02]}  Re7 {[%clk 0:00:03]} 40. Qd3 {[%clk 0:00:03]}  Qf6 {[%clk 0:00:04]} 41. Qe2 {[%clk 0:00:03]}  Re8 {[%clk 0:00:04]} 42. Qf3 {[%clk 0:00:04]}  Qe7 {[%clk 0:00:03]} 43. Nd3 {[%clk 0:00:04]}  Kg7 {[%clk 0:00:03]} 44. b5 {[%clk 0:00:04]}  Bc7 {[%clk 0:00:03]} 45. Rc6 {[%clk 0:00:04]}  Bd6 {[%clk 0:00:03]} 46. Qe2 {[%clk 0:00:04]}  Rd8 {[%clk 0:00:03]} 47. Qc2 {[%clk 0:00:03]}  Rb8 {[%clk 0:00:03]} 48. Qa4 {[%clk 0:00:04]}  Rb7 {[%clk 0:00:01]} 49. Qa6 {[%clk 0:00:04]}  Rd7 {[%clk 0:00:02]} 50. Nc5 {[%clk 0:00:03]}  Rd8 {[%clk 0:00:01]} 51. Nb7 {[%clk 0:00:04]}  Bb8 {[%clk 0:00:01]} 52. Nxd8 {[%clk 0:00:04]}  Qxd8 {[%clk 0:00:02]} 53. Qc8 {[%clk 0:00:03]}  Qa5 {[%clk 0:00:01]} 54. Qxb8 {[%clk 0:00:04]}  Qd2 {[%clk 0:00:01]} 55. Qe5+ {[%clk 0:00:04]} 1-0


[Site "https://www.chess.com"]

[Event "Titled Tuesday Blitz January 31 Early 2023"]
[White "Bacrot, Etienne"]
[Black "Mosadeghpour, Masoud"]
[WhiteFideId "605506"]
[BlackFideId "12519278"]
[WhiteElo "2667"]
[BlackElo "2472"]
[Result "1-0"]
[Round "08"]
[TimeControl "180+2"]
[Date "2023.01.31"]
[WhiteClock "0:00:21"]
[BlackClock "0:00:02"]

1. e4 {[%clk 0:03:00]}  e5 {[%clk 0:02:58]} 2. Nf3 {[%clk 0:03:00]}  Nf6 {[%clk 0:02:58]} 3. Nc3 {[%clk 0:03:00]}  Nc6 {[%clk 0:02:58]} 4. Bb5 {[%clk 0:03:00]}  Nd4 {[%clk 0:02:56]} 5. Nxd4 {[%clk 0:02:58]}  exd4 {[%clk 0:02:57]} 6. e5 {[%clk 0:02:58]}  dxc3 {[%clk 0:02:57]} 7. exf6 {[%clk 0:02:57]}  Qxf6 {[%clk 0:02:56]} 8. dxc3 {[%clk 0:02:56]}  c6 {[%clk 0:02:45]} 9. Bd3 {[%clk 0:02:51]}  d5 {[%clk 0:02:45]} 10. O-O {[%clk 0:02:50]}  Bd6 {[%clk 0:02:43]} 11. Re1+ {[%clk 0:02:50]}  Be6 {[%clk 0:02:43]} 12. Qh5 {[%clk 0:02:43]}  h6 {[%clk 0:02:29]} 13. Be3 {[%clk 0:02:10]}  O-O {[%clk 0:02:02]} 14. h4 {[%clk 0:01:51]}  Rfe8 {[%clk 0:01:19]} 15. Bd4 {[%clk 0:01:18]}  Qf4 {[%clk 0:01:17]} 16. g3 {[%clk 0:01:12]}  Qg4 {[%clk 0:01:17]} 17. Qxg4 {[%clk 0:01:12]}  Bxg4 {[%clk 0:01:18]} 18. Rxe8+ {[%clk 0:01:11]}  Rxe8 {[%clk 0:01:18]} 19. Bxa7 {[%clk 0:01:12]}  c5 {[%clk 0:01:14]} 20. c4 {[%clk 0:00:53]}  dxc4 {[%clk 0:01:05]} 21. Bxc4 {[%clk 0:00:53]}  Bf3 {[%clk 0:01:06]} 22. a4 {[%clk 0:00:50]}  g5 {[%clk 0:01:02]} 23. hxg5 {[%clk 0:00:47]}  hxg5 {[%clk 0:01:03]} 24. a5 {[%clk 0:00:45]}  Kg7 {[%clk 0:01:02]} 25. Bf1 {[%clk 0:00:45]}  f5 {[%clk 0:00:55]} 26. Bb6 {[%clk 0:00:45]}  f4 {[%clk 0:00:48]} 27. gxf4 {[%clk 0:00:40]}  gxf4 {[%clk 0:00:49]} 28. Bg2 {[%clk 0:00:39]}  Bxg2 {[%clk 0:00:38]} 29. Kxg2 {[%clk 0:00:40]}  Kf6 {[%clk 0:00:39]} 30. Rd1 {[%clk 0:00:37]}  Re6 {[%clk 0:00:27]} 31. Kf3 {[%clk 0:00:36]}  c4 {[%clk 0:00:15]} 32. c3 {[%clk 0:00:30]}  Ke7 {[%clk 0:00:08]} 33. Rd4 {[%clk 0:00:30]}  Rh6 {[%clk 0:00:04]} 34. Rxc4 {[%clk 0:00:28]}  Rh3+ {[%clk 0:00:04]} 35. Kg4 {[%clk 0:00:24]}  Rh2 {[%clk 0:00:04]} 36. b4 {[%clk 0:00:22]}  Rg2+ {[%clk 0:00:03]} 37. Kf3 {[%clk 0:00:22]}  Rh2 {[%clk 0:00:03]} 38. Bc5 {[%clk 0:00:22]}  Rh3+ {[%clk 0:00:03]} 39. Kg4 {[%clk 0:00:21]}  Rd3 {[%clk 0:00:03]} 40. Bxd6+ {[%clk 0:00:20]}  Rxd6 {[%clk 0:00:03]} 41. Kxf4 {[%clk 0:00:20]}  Rf6+ {[%clk 0:00:03]} 42. Ke3 {[%clk 0:00:20]}  Kd6 {[%clk 0:00:03]} 43. Rd4+ {[%clk 0:00:20]}  Kc6 {[%clk 0:00:04]} 44. f4 {[%clk 0:00:21]}  Rh6 {[%clk 0:00:03]} 45. Rc4+ {[%clk 0:00:20]}  Kb5 {[%clk 0:00:01]} 46. Rc5+ {[%clk 0:00:21]}  Ka6 {[%clk 0:00:02]} 47. f5 {[%clk 0:00:21]}  Rh1 {[%clk 0:00:01]} 48. Kf4 {[%clk 0:00:21]}  Rf1+ {[%clk 0:00:01]} 49. Kg5 {[%clk 0:00:21]}  Rg1+ {[%clk 0:00:01]} 50. Kh6 {[%clk 0:00:22]}  b6 {[%clk 0:00:01]} 51. axb6 {[%clk 0:00:21]}  Kxb6 {[%clk 0:00:02]} 52. f6 {[%clk 0:00:22]}  Rf1 {[%clk 0:00:03]} 53. Kg7 {[%clk 0:00:21]}  Rg1+ {[%clk 0:00:01]} 54. Kh6 {[%clk 0:00:21]}  Rh1+ {[%clk 0:00:01]} 55. Kg6 {[%clk 0:00:21]}  Rg1+ {[%clk 0:00:01]} 56. Rg5 {[%clk 0:00:21]}  Rd1 {[%clk 0:00:02]} 57. f7 {[%clk 0:00:21]}  Rd8 {[%clk 0:00:02]} 58. Kg7 {[%clk 0:00:21]} 1-0


[Site "https://www.chess.com"]

[Event "Titled Tuesday Blitz January 31 Early 2023"]
[White "Iliaguev, Nisim"]
[Black "Sarana, Alexey"]
[WhiteFideId "2817276"]
[BlackFideId "24133795"]
[WhiteElo "2402"]
[BlackElo "2685"]
[Result "1-0"]
[Round "08"]
[TimeControl "180+2"]
[Date "2023.01.31"]
[WhiteClock "0:00:09"]
[BlackClock "0:00:39"]

1. d4 {[%clk 0:03:00]}  Nf6 {[%clk 0:02:59]} 2. Nf3 {[%clk 0:03:01]}  d5 {[%clk 0:03:00]} 3. g3 {[%clk 0:03:02]}  c6 {[%clk 0:02:59]} 4. Bg2 {[%clk 0:03:02]}  Bf5 {[%clk 0:02:59]} 5. O-O {[%clk 0:03:03]}  h6 {[%clk 0:03:00]} 6. c4 {[%clk 0:03:03]}  e6 {[%clk 0:03:00]} 7. Ne5 {[%clk 0:03:03]}  Nbd7 {[%clk 0:03:00]} 8. Nxd7 {[%clk 0:03:03]}  Qxd7 {[%clk 0:03:00]} 9. Qb3 {[%clk 0:03:03]}  Bd6 {[%clk 0:02:59]} 10. Nc3 {[%clk 0:03:03]}  O-O {[%clk 0:02:59]} 11. Re1 {[%clk 0:03:00]}  Rfe8 {[%clk 0:02:58]} 12. e4 {[%clk 0:02:59]}  dxe4 {[%clk 0:02:58]} 13. Nxe4 {[%clk 0:02:59]}  Nxe4 {[%clk 0:02:59]} 14. Bxe4 {[%clk 0:03:00]}  Bxe4 {[%clk 0:02:58]} 15. Rxe4 {[%clk 0:03:01]}  e5 {[%clk 0:02:59]} 16. dxe5 {[%clk 0:02:51]}  Bxe5 {[%clk 0:02:57]} 17. Bf4 {[%clk 0:02:35]}  Bxf4 {[%clk 0:02:56]} 18. Rxf4 {[%clk 0:02:36]}  Re2 {[%clk 0:02:56]} 19. Rd1 {[%clk 0:02:30]}  Qe7 {[%clk 0:02:55]} 20. Rfd4 {[%clk 0:02:25]}  Re8 {[%clk 0:02:50]} 21. Kg2 {[%clk 0:02:06]}  Qf6 {[%clk 0:02:44]} 22. Rf4 {[%clk 0:01:17]}  Qe7 {[%clk 0:02:41]} 23. Qc3 {[%clk 0:01:10]}  g5 {[%clk 0:02:28]} 24. Rf3 {[%clk 0:01:06]}  Qe4 {[%clk 0:02:26]} 25. Rd4 {[%clk 0:01:03]}  Qe6 {[%clk 0:02:18]} 26. h4 {[%clk 0:01:01]}  g4 {[%clk 0:02:13]} 27. Rff4 {[%clk 0:00:58]}  h5 {[%clk 0:02:13]} 28. c5 {[%clk 0:00:49]}  Re1 {[%clk 0:02:03]} 29. Qd3 {[%clk 0:00:45]}  Qxa2 {[%clk 0:01:39]} 30. Rf5 {[%clk 0:00:41]}  Qa1 {[%clk 0:01:21]} 31. Rxg4+ {[%clk 0:00:10]}  hxg4 {[%clk 0:00:37]} 32. Rg5+ {[%clk 0:00:10]}  Kf8 {[%clk 0:00:37]} 33. Qd6+ {[%clk 0:00:09]}  R8e7 {[%clk 0:00:38]} 34. Qh6+ {[%clk 0:00:09]}  Ke8 {[%clk 0:00:38]} 35. Rg8+ {[%clk 0:00:09]}  Kd7 {[%clk 0:00:39]} 36. Qd6# {[%clk 0:00:09]} 1-0


[Site "https://www.chess.com"]